[Event "*** SCC Grand Prix: Titled Tuesday Blitz"]
[Site "Chess.com"]
[Date "2020.06.23"]
[Round "2"]
[White "Beca95"]
[Black "Azatic"]
[Result "1-0"]
[WhiteElo "2883"]
[BlackElo "2560"]
[TimeControl "180+1"]
[EndTime "10:16:33 PDT"]
[Termination "Beca95 won by resignation"]

1. g3 {[%clk 0:03:00.9]} 1... c5 {[%clk 0:02:29]} 2. Bg2 {[%clk 0:02:59.5]} 2...
g6 {[%clk 0:02:29.6]} 3. e3 {[%clk 0:02:56.6]} 3... Bg7 {[%clk 0:02:29.8]} 4. d4
{[%clk 0:02:56.8]} 4... cxd4 {[%clk 0:02:30.7]} 5. exd4 {[%clk 0:02:57.4]} 5...
Nf6 {[%clk 0:02:31.6]} 6. c3 {[%clk 0:02:56.2]} 6... O-O {[%clk 0:02:31.6]} 7.
Nf3 {[%clk 0:02:55.3]} 7... d6 {[%clk 0:02:25.5]} 8. O-O {[%clk 0:02:55.2]} 8...
Nc6 {[%clk 0:02:26]} 9. a4 {[%clk 0:02:55.1]} 9... e5 {[%clk 0:02:25.5]} 10. Na3
{[%clk 0:02:52.6]} 10... e4 {[%clk 0:02:19.8]} 11. Ne1 {[%clk 0:02:52]} 11...
Re8 {[%clk 0:02:12.2]} 12. Bg5 {[%clk 0:02:51.6]} 12... h6 {[%clk 0:02:11.5]}
13. Bxf6 {[%clk 0:02:51.7]} 13... Bxf6 {[%clk 0:01:56.4]} 14. Nec2 {[%clk
0:02:51.6]} 14... d5 {[%clk 0:01:56]} 15. f3 {[%clk 0:02:50.5]} 15... exf3
{[%clk 0:01:27.7]} 16. Qxf3 {[%clk 0:02:49.6]} 16... Bf5 {[%clk 0:01:26.7]} 17.
Ne3 {[%clk 0:02:48.9]} 17... Nxd4 {[%clk 0:01:26.5]} 18. Qf2 {[%clk 0:02:37.1]}
18... Rxe3 {[%clk 0:00:57.9]} 19. Qxe3 {[%clk 0:02:35.1]} 19... Nb3 {[%clk
0:00:58.4]} 20. Rad1 {[%clk 0:02:29.4]} 20... d4 {[%clk 0:00:57.3]} 21. Qf3
{[%clk 0:02:27.6]} 21... Qb6 {[%clk 0:00:49.6]} 22. Kh1 {[%clk 0:02:21.2]} 22...
dxc3 {[%clk 0:00:44.6]} 23. bxc3 {[%clk 0:02:19]} 23... h5 {[%clk 0:00:43.2]}
24. Nc4 {[%clk 0:02:05.6]} 24... Qc6 {[%clk 0:00:31.7]} 25. Qxc6 {[%clk
0:02:02.4]} 25... bxc6 {[%clk 0:00:32.6]} 26. Ne3 {[%clk 0:02:01]} 26... Re8
{[%clk 0:00:07.2]} 27. Nxf5 {[%clk 0:02:00.8]} 27... gxf5 {[%clk 0:00:08.1]} 28.
Bxc6 {[%clk 0:02:00.2]} 28... Bg7 {[%clk 0:00:09]} 29. Bxe8 {[%clk 0:01:59.9]}
1-0

[Event "*** SCC Grand Prix: Titled Tuesday Blitz"]
[Site "Chess.com"]
[Date "2020.06.23"]
[Round "2"]
[White "1f3_2g41-0"]
[Black "Violord"]
[Result "0-1"]
[WhiteElo "2231"]
[BlackElo "2627"]
[TimeControl "180+1"]
[EndTime "10:16:39 PDT"]
[Termination "Violord won by resignation"]

1. e4 {[%clk 0:03:00.9]} 1... e5 {[%clk 0:02:57.9]} 2. Nf3 {[%clk 0:02:59.8]}
2... Nc6 {[%clk 0:02:57.7]} 3. Bb5 {[%clk 0:03:00.4]} 3... a6 {[%clk 0:02:56.4]}
4. Ba4 {[%clk 0:02:59.9]} 4... Nf6 {[%clk 0:02:55.5]} 5. O-O {[%clk 0:03:00.1]}
5... Be7 {[%clk 0:02:54.9]} 6. Re1 {[%clk 0:02:59.5]} 6... b5 {[%clk 0:02:54.5]}
7. Bb3 {[%clk 0:02:59.1]} 7... O-O {[%clk 0:02:54.5]} 8. c3 {[%clk 0:02:58.8]}
8... d6 {[%clk 0:02:52.6]} 9. h3 {[%clk 0:02:56.7]} 9... Nb8 {[%clk 0:02:51.7]}
10. d4 {[%clk 0:02:55.3]} 10... Nbd7 {[%clk 0:02:50.9]} 11. Bg5 {[%clk
0:02:50.8]} 11... Bb7 {[%clk 0:02:47.9]} 12. Nbd2 {[%clk 0:02:50.7]} 12... h6
{[%clk 0:02:40.7]} 13. Bh4 {[%clk 0:02:49.3]} 13... c5 {[%clk 0:02:40.2]} 14. d5
{[%clk 0:02:48.8]} 14... c4 {[%clk 0:02:37.4]} 15. Bc2 {[%clk 0:02:47.5]} 15...
Nxd5 {[%clk 0:02:23.8]} 16. exd5 {[%clk 0:01:49.8]} 16... Bxh4 {[%clk
0:02:21.6]} 17. Ne4 {[%clk 0:01:49.6]} 17... Be7 {[%clk 0:02:20.3]} 18. Ng3
{[%clk 0:01:42.3]} 18... g6 {[%clk 0:02:14.8]} 19. Qd2 {[%clk 0:01:38]} 19...
Kg7 {[%clk 0:02:08.3]} 20. Rad1 {[%clk 0:01:29.9]} 20... Nf6 {[%clk 0:02:01.9]}
21. Nh4 {[%clk 0:01:23.3]} 21... Bc8 {[%clk 0:01:44.4]} 22. Bf5 {[%clk
0:01:13.2]} 22... Ng8 {[%clk 0:01:39.4]} 23. Bxc8 {[%clk 0:01:09.7]} 23... Qxc8
{[%clk 0:01:37.8]} 24. Nf3 {[%clk 0:01:05.2]} 24... Ra7 {[%clk 0:01:26.3]} 25.
Qe3 {[%clk 0:00:56]} 25... Rc7 {[%clk 0:01:23.3]} 26. Nxe5 {[%clk 0:00:51.1]}
26... dxe5 {[%clk 0:01:14.1]} 27. d6 {[%clk 0:00:50.6]} 27... Bxd6 {[%clk
0:01:11.8]} 28. Rxd6 {[%clk 0:00:49.9]} 28... Re8 {[%clk 0:01:09.4]} 29. Rxa6
{[%clk 0:00:48.6]} 29... Qxa6 {[%clk 0:01:06.7]} 0-1

[Event "*** SCC Grand Prix: Titled Tuesday Blitz"]
[Site "Chess.com"]
[Date "2020.06.23"]
[Round "2"]
[White "c63_amg"]
[Black "PowerThinking2650"]
[Result "1-0"]
[WhiteElo "2771"]
[BlackElo "2341"]
[TimeControl "180+1"]
[EndTime "10:16:42 PDT"]
[Termination "c63_amg won by checkmate"]

1. e4 {[%clk 0:03:00.9]} 1... e5 {[%clk 0:02:59.4]} 2. Nf3 {[%clk 0:03:00.7]}
2... Nc6 {[%clk 0:02:59.5]} 3. d4 {[%clk 0:03:01.3]} 3... exd4 {[%clk
0:02:59.2]} 4. Bc4 {[%clk 0:03:01.9]} 4... Nf6 {[%clk 0:02:58.7]} 5. e5 {[%clk
0:03:02.1]} 5... d5 {[%clk 0:02:58.4]} 6. Bb5 {[%clk 0:03:02.7]} 6... Ne4 {[%clk
0:02:58.9]} 7. Nxd4 {[%clk 0:03:03.1]} 7... Bc5 {[%clk 0:02:59.2]} 8. Be3 {[%clk
0:03:01.4]} 8... Bd7 {[%clk 0:02:57.5]} 9. Bxc6 {[%clk 0:02:57.9]} 9... bxc6
{[%clk 0:02:57.7]} 10. f3 {[%clk 0:02:40.8]} 10... Qh4+ {[%clk 0:02:15]} 11. g3
{[%clk 0:02:01.9]} 11... Nxg3 {[%clk 0:01:25.5]} 12. Bf2 {[%clk 0:02:01.4]}
12... Bxd4 {[%clk 0:00:50.6]} 13. Bxg3 {[%clk 0:01:59.8]} 13... Qh3 {[%clk
0:00:20.5]} 14. Qxd4 {[%clk 0:01:59.3]} 14... Qg2 {[%clk 0:00:20.6]} 15. Rg1
{[%clk 0:01:48.7]} 15... Qxf3 {[%clk 0:00:20.4]} 16. Nd2 {[%clk 0:01:47]} 16...
Qf5 {[%clk 0:00:17.6]} 17. O-O-O {[%clk 0:01:44.4]} 17... Rb8 {[%clk 0:00:17.4]}
18. Nb3 {[%clk 0:01:42]} 18... O-O {[%clk 0:00:15.6]} 19. Rdf1 {[%clk
0:01:36.8]} 19... Qe6 {[%clk 0:00:15.4]} 20. Kb1 {[%clk 0:01:34.4]} 20... Qe7
{[%clk 0:00:13.8]} 21. Nc5 {[%clk 0:01:34.3]} 21... Be6 {[%clk 0:00:12]} 22. Bh4
{[%clk 0:01:31.3]} 22... Qe8 {[%clk 0:00:11.2]} 23. Bf6 {[%clk 0:01:31.4]} 23...
g6 {[%clk 0:00:11.5]} 24. Qe3 {[%clk 0:01:31]} 24... Rb5 {[%clk 0:00:10.7]} 25.
Qh6 {[%clk 0:01:30.6]} 25... Rxc5 {[%clk 0:00:10.8]} 26. Qg7# {[%clk 0:01:30.3]}
1-0

[Event "*** SCC Grand Prix: Titled Tuesday Blitz"]
[Site "Chess.com"]
[Date "2020.06.23"]
[Round "2"]
[White "GMJustin"]
[Black "Warre"]
[Result "0-1"]
[WhiteElo "2273"]
[BlackElo "2467"]
[TimeControl "180+1"]
[EndTime "10:16:48 PDT"]
[Termination "Warre won on time"]

1. d4 {[%clk 0:02:57.5]} 1... Nf6 {[%clk 0:02:59.2]} 2. c4 {[%clk 0:02:56.9]}
2... e6 {[%clk 0:02:59.5]} 3. Nc3 {[%clk 0:02:52.1]} 3... Bb4 {[%clk 0:02:59.8]}
4. e3 {[%clk 0:02:51.3]} 4... O-O {[%clk 0:02:59.6]} 5. Bd3 {[%clk 0:02:51.2]}
5... c5 {[%clk 0:02:59.2]} 6. d5 {[%clk 0:02:49.6]} 6... exd5 {[%clk 0:02:59.1]}
7. cxd5 {[%clk 0:02:49.2]} 7... d6 {[%clk 0:02:51.4]} 8. Ne2 {[%clk 0:02:35.3]}
8... Re8 {[%clk 0:02:47.5]} 9. O-O {[%clk 0:02:17.6]} 9... Nbd7 {[%clk
0:02:47.1]} 10. e4 {[%clk 0:02:11.6]} 10... a6 {[%clk 0:02:44.5]} 11. a4 {[%clk
0:02:09]} 11... Ne5 {[%clk 0:02:43.8]} 12. Bc2 {[%clk 0:02:07.1]} 12... Bd7
{[%clk 0:02:43.6]} 13. f4 {[%clk 0:01:58.6]} 13... Ng6 {[%clk 0:02:42.2]} 14. e5
{[%clk 0:01:06.4]} 14... dxe5 {[%clk 0:02:40.4]} 15. f5 {[%clk 0:01:06.7]} 15...
Nf8 {[%clk 0:02:31.4]} 16. Bg5 {[%clk 0:01:05.1]} 16... h6 {[%clk 0:02:16.5]}
17. Bh4 {[%clk 0:00:57.9]} 17... c4 {[%clk 0:02:12]} 18. Ne4 {[%clk 0:00:47.6]}
18... N8h7 {[%clk 0:02:10.9]} 19. Kh1 {[%clk 0:00:32.2]} 19... Qb6 {[%clk
0:01:48.7]} 20. Bf2 {[%clk 0:00:30.1]} 20... Qc7 {[%clk 0:01:45.1]} 21. d6
{[%clk 0:00:18.6]} 21... Qc8 {[%clk 0:01:44.4]} 22. N2c3 {[%clk 0:00:07.5]}
22... Bc6 {[%clk 0:01:41.1]} 23. Qe2 {[%clk 0:00:06.3]} 23... Bxc3 {[%clk
0:01:34.3]} 24. Nxc3 {[%clk 0:00:01.2]} 24... b5 {[%clk 0:01:31.5]} 0-1

[Event "*** SCC Grand Prix: Titled Tuesday Blitz"]
[Site "Chess.com"]
[Date "2020.06.23"]
[Round "2"]
[White "FairChess_on_YouTube"]
[Black "Hasangatin_Ramil"]
[Result "1-0"]
[WhiteElo "2984"]
[BlackElo "2603"]
[TimeControl "180+1"]
[EndTime "10:16:49 PDT"]
[Termination "FairChess_on_YouTube won on time"]

1. e4 {[%clk 0:03:00.9]} 1... c5 {[%clk 0:02:56.9]} 2. Nc3 {[%clk 0:02:59.6]}
2... e6 {[%clk 0:02:55.2]} 3. Nge2 {[%clk 0:02:59.4]} 3... Nc6 {[%clk
0:02:54.5]} 4. d4 {[%clk 0:02:59.3]} 4... cxd4 {[%clk 0:02:55.4]} 5. Nxd4 {[%clk
0:02:59.7]} 5... Bb4 {[%clk 0:02:54.1]} 6. Nxc6 {[%clk 0:02:48.7]} 6... dxc6
{[%clk 0:02:55]} 7. Qxd8+ {[%clk 0:02:48.1]} 7... Kxd8 {[%clk 0:02:55.9]} 8. Bf4
{[%clk 0:02:47.3]} 8... Nf6 {[%clk 0:02:54.9]} 9. O-O-O+ {[%clk 0:02:47.1]} 9...
Ke8 {[%clk 0:02:53.7]} 10. f3 {[%clk 0:02:45]} 10... Nh5 {[%clk 0:02:50.5]} 11.
Bc7 {[%clk 0:02:38.8]} 11... Bd7 {[%clk 0:02:01.6]} 12. Bc4 {[%clk 0:02:37.7]}
12... Rc8 {[%clk 0:01:56.6]} 13. Be5 {[%clk 0:02:37.4]} 13... f6 {[%clk
0:01:42.9]} 14. Bd4 {[%clk 0:02:22.2]} 14... b6 {[%clk 0:01:14.5]} 15. a3 {[%clk
0:02:13.5]} 15... Be7 {[%clk 0:00:51]} 16. e5 {[%clk 0:02:13]} 16... Nf4 {[%clk
0:00:39.4]} 17. Ne4 {[%clk 0:02:11.3]} 17... c5 {[%clk 0:00:19.2]} 18. Bc3
{[%clk 0:02:03.2]} 18... b5 {[%clk 0:00:18.1]} 19. exf6 {[%clk 0:02:02]} 19...
bxc4 {[%clk 0:00:10.5]} 20. fxe7 {[%clk 0:01:54.3]} 20... Ne2+ {[%clk
0:00:10.6]} 21. Kd2 {[%clk 0:01:51.2]} 21... Nxc3 {[%clk 0:00:08.4]} 22. Nd6+
{[%clk 0:01:50.8]} 22... Kxe7 {[%clk 0:00:08.7]} 23. Nxc8+ {[%clk 0:01:51.3]}
23... Rxc8 {[%clk 0:00:09.3]} 24. Kxc3 {[%clk 0:01:51.9]} 24... Rb8 {[%clk
0:00:07.8]} 25. Rhe1 {[%clk 0:01:51]} 25... Bc6 {[%clk 0:00:07.7]} 26. Re5
{[%clk 0:01:50.3]} 26... Rb5 {[%clk 0:00:04.3]} 27. Rde1 {[%clk 0:01:49.6]}
27... Bd7 {[%clk 0:00:03.9]} 28. R1e4 {[%clk 0:01:49.5]} 28... Kd6 {[%clk
0:00:03.4]} 29. Rg5 {[%clk 0:01:49.5]} 29... g6 {[%clk 0:00:02.8]} 30. Rxc4
{[%clk 0:01:48.9]} 1-0

[Event "*** SCC Grand Prix: Titled Tuesday Blitz"]
[Site "Chess.com"]
[Date "2020.06.23"]
[Round "2"]
[White "mbojan"]
[Black "Richarzard69"]
[Result "1-0"]
[WhiteElo "2591"]
[BlackElo "2270"]
[TimeControl "180+1"]
[EndTime "10:16:49 PDT"]
[Termination "mbojan won on time"]

1. e4 {[%clk 0:03:00.9]} 1... e6 {[%clk 0:02:57.5]} 2. d4 {[%clk 0:03:00.5]}
2... d5 {[%clk 0:02:55.4]} 3. Nc3 {[%clk 0:03:01.2]} 3... Bb4 {[%clk 0:02:55.1]}
4. e5 {[%clk 0:03:01.4]} 4... c5 {[%clk 0:02:54.9]} 5. Bd2 {[%clk 0:03:01.1]}
5... Ne7 {[%clk 0:02:53.5]} 6. a3 {[%clk 0:02:59.9]} 6... Bxc3 {[%clk
0:02:52.9]} 7. Bxc3 {[%clk 0:03:00.8]} 7... cxd4 {[%clk 0:02:53]} 8. Bxd4 {[%clk
0:03:00.3]} 8... Nbc6 {[%clk 0:02:53.3]} 9. c3 {[%clk 0:03:00.1]} 9... O-O
{[%clk 0:02:51.8]} 10. Nf3 {[%clk 0:02:55.8]} 10... Bd7 {[%clk 0:02:47.7]} 11.
Bd3 {[%clk 0:02:47.5]} 11... h6 {[%clk 0:02:29.7]} 12. O-O {[%clk 0:02:47.3]}
12... Nxd4 {[%clk 0:02:28.6]} 13. cxd4 {[%clk 0:02:48.2]} 13... Qb6 {[%clk
0:02:27.7]} 14. Qe2 {[%clk 0:02:47.7]} 14... Rfc8 {[%clk 0:02:21.2]} 15. Rfc1
{[%clk 0:02:44.9]} 15... a6 {[%clk 0:02:18.5]} 16. b4 {[%clk 0:02:36.1]} 16...
Bb5 {[%clk 0:02:15.3]} 17. Bxb5 {[%clk 0:02:36.3]} 17... axb5 {[%clk 0:02:09.7]}
18. Rc5 {[%clk 0:02:31.3]} 18... Rxc5 {[%clk 0:01:41.5]} 19. dxc5 {[%clk
0:02:32.2]} 19... Qa6 {[%clk 0:01:30.1]} 20. Nd4 {[%clk 0:02:32.1]} 20... Nc6
{[%clk 0:01:06.2]} 21. Nxb5 {[%clk 0:02:29.7]} 21... Nxb4 {[%clk 0:00:56.3]} 22.
h3 {[%clk 0:02:21]} 22... Nc6 {[%clk 0:00:48.2]} 23. Qb2 {[%clk 0:02:19.5]}
23... Nxe5 {[%clk 0:00:40]} 24. Nc7 {[%clk 0:02:19.2]} 24... Nc4 {[%clk
0:00:32.1]} 25. Qb4 {[%clk 0:02:07.9]} 25... Qa5 {[%clk 0:00:23.6]} 26. Nxa8
{[%clk 0:02:08]} 26... Qxa8 {[%clk 0:00:23.9]} 27. Rb1 {[%clk 0:02:07.7]} 27...
g6 {[%clk 0:00:14.2]} 28. a4 {[%clk 0:02:07.9]} 28... Kg7 {[%clk 0:00:13.6]} 29.
Qxb7 {[%clk 0:02:03.4]} 29... Qxa4 {[%clk 0:00:14]} 30. c6 {[%clk 0:02:03.5]}
30... Qc2 {[%clk 0:00:14]} 31. c7 {[%clk 0:02:00.3]} 31... Na5 {[%clk
0:00:07.8]} 32. Qb2+ {[%clk 0:02:00]} 32... Qxb2 {[%clk 0:00:07.2]} 33. Rxb2
{[%clk 0:02:00.9]} 1-0

[Event "*** SCC Grand Prix: Titled Tuesday Blitz"]
[Site "Chess.com"]
[Date "2020.06.23"]
[Round "2"]
[White "tan275"]
[Black "valeriocarnicelli"]
[Result "1-0"]
[WhiteElo "2267"]
[BlackElo "2545"]
[TimeControl "180+1"]
[EndTime "10:16:52 PDT"]
[Termination "tan275 won by resignation"]

1. d4 {[%clk 0:03:00.9]} 1... Nf6 {[%clk 0:02:59.2]} 2. c4 {[%clk 0:03:01.2]}
2... g6 {[%clk 0:02:59.5]} 3. g3 {[%clk 0:03:00.9]} 3... Bg7 {[%clk 0:02:59.9]}
4. Bg2 {[%clk 0:03:01.4]} 4... O-O {[%clk 0:03:00.3]} 5. Nf3 {[%clk 0:02:59.8]}
5... d6 {[%clk 0:03:00.7]} 6. Nc3 {[%clk 0:02:59.3]} 6... Nbd7 {[%clk
0:03:00.3]} 7. O-O {[%clk 0:02:58.8]} 7... e5 {[%clk 0:03:00.7]} 8. h3 {[%clk
0:02:57.6]} 8... c6 {[%clk 0:03:00.9]} 9. e4 {[%clk 0:02:56.5]} 9... Qb6 {[%clk
0:03:00.3]} 10. d5 {[%clk 0:02:54.5]} 10... Nc5 {[%clk 0:02:57.8]} 11. Qe2
{[%clk 0:02:53.8]} 11... a5 {[%clk 0:02:52.6]} 12. Be3 {[%clk 0:02:48.3]} 12...
cxd5 {[%clk 0:02:52.2]} 13. cxd5 {[%clk 0:02:47.6]} 13... Bd7 {[%clk 0:02:50.8]}
14. Rfb1 {[%clk 0:02:42.6]} 14... Rfc8 {[%clk 0:02:49.5]} 15. Nd2 {[%clk
0:02:34.7]} 15... Qa6 {[%clk 0:02:47.8]} 16. Qxa6 {[%clk 0:02:08.7]} 16... Nxa6
{[%clk 0:02:47.7]} 17. Bf1 {[%clk 0:02:08]} 17... Nb4 {[%clk 0:02:45.3]} 18. Rc1
{[%clk 0:02:03.9]} 18... h5 {[%clk 0:02:08]} 19. a3 {[%clk 0:02:02.8]} 19... Na6
{[%clk 0:02:07.7]} 20. Nb5 {[%clk 0:02:01.5]} 20... Ne8 {[%clk 0:02:00.5]} 21.
a4 {[%clk 0:01:45.2]} 21... Kh7 {[%clk 0:01:59.5]} 22. Nc4 {[%clk 0:01:44.6]}
22... Bh6 {[%clk 0:01:40.8]} 23. Bxh6 {[%clk 0:01:41.7]} 23... Kxh6 {[%clk
0:01:40.8]} 24. Ncxd6 {[%clk 0:01:26.3]} 24... Nxd6 {[%clk 0:01:40.9]} 25. Nxd6
{[%clk 0:01:25.7]} 25... Rxc1 {[%clk 0:01:40.7]} 26. Rxc1 {[%clk 0:01:25.4]}
26... Kg7 {[%clk 0:01:39.6]} 27. b3 {[%clk 0:01:03.8]} 27... Rb8 {[%clk
0:01:33.4]} 28. Bxa6 {[%clk 0:01:00.8]} 28... bxa6 {[%clk 0:01:33.7]} 29. Rc7
{[%clk 0:01:01.2]} 29... Be8 {[%clk 0:01:33.9]} 30. Nxe8+ {[%clk 0:00:58.7]}
30... Rxe8 {[%clk 0:01:33.6]} 31. Ra7 {[%clk 0:00:54.9]} 31... Rb8 {[%clk
0:01:33.5]} 32. Rxa6 {[%clk 0:00:54.5]} 32... Rxb3 {[%clk 0:01:33.7]} 33. Rxa5
{[%clk 0:00:54.5]} 33... Rb4 {[%clk 0:01:34.1]} 34. d6 {[%clk 0:00:41.5]} 34...
Rd4 {[%clk 0:01:33.4]} 35. Rd5 {[%clk 0:00:39.7]} 35... Kf8 {[%clk 0:01:30.9]}
36. Rxd4 {[%clk 0:00:37]} 36... exd4 {[%clk 0:01:31.8]} 37. a5 {[%clk
0:00:37.4]} 37... d3 {[%clk 0:01:31.3]} 38. Kf1 {[%clk 0:00:36.9]} 1-0

[Event "*** SCC Grand Prix: Titled Tuesday Blitz"]
[Site "Chess.com"]
[Date "2020.06.23"]
[Round "2"]
[White "Shubinkirill2003"]
[Black "KyrgyzFighter"]
[Result "1-0"]
[WhiteElo "2636"]
[BlackElo "2269"]
[TimeControl "180+1"]
[EndTime "10:16:53 PDT"]
[Termination "Shubinkirill2003 won by resignation"]

1. e4 {[%clk 0:03:00.9]} 1... e6 {[%clk 0:02:59.5]} 2. d4 {[%clk 0:03:00.4]}
2... d5 {[%clk 0:02:59.8]} 3. Nc3 {[%clk 0:03:01.3]} 3... Nf6 {[%clk 0:02:59.7]}
4. Bg5 {[%clk 0:03:00.1]} 4... Be7 {[%clk 0:02:59.8]} 5. e5 {[%clk 0:02:59.8]}
5... Nfd7 {[%clk 0:03:00]} 6. Bxe7 {[%clk 0:03:00.2]} 6... Qxe7 {[%clk
0:02:59.9]} 7. Qd2 {[%clk 0:03:00.8]} 7... O-O {[%clk 0:02:59.4]} 8. f4 {[%clk
0:03:00.1]} 8... c5 {[%clk 0:02:59.7]} 9. dxc5 {[%clk 0:03:00.2]} 9... Nxc5
{[%clk 0:02:54.5]} 10. Nf3 {[%clk 0:02:58.9]} 10... Nc6 {[%clk 0:02:54.6]} 11.
Qe3 {[%clk 0:02:56.3]} 11... a6 {[%clk 0:02:50.1]} 12. a3 {[%clk 0:02:54.9]}
12... Rd8 {[%clk 0:02:47.9]} 13. Rd1 {[%clk 0:02:48.9]} 13... b5 {[%clk
0:02:46]} 14. b4 {[%clk 0:02:38.3]} 14... Nd7 {[%clk 0:02:18.2]} 15. Bd3 {[%clk
0:02:32.3]} 15... Nf8 {[%clk 0:02:18.3]} 16. Ne2 {[%clk 0:02:31.3]} 16... a5
{[%clk 0:02:13.3]} 17. Bxb5 {[%clk 0:02:23.1]} 17... Bb7 {[%clk 0:02:13.1]} 18.
c3 {[%clk 0:02:20.2]} 18... axb4 {[%clk 0:02:11.9]} 19. axb4 {[%clk 0:02:21.1]}
19... Nxb4 {[%clk 0:01:53.1]} 20. O-O {[%clk 0:01:56.1]} 20... Nc2 {[%clk
0:01:41]} 21. Qf2 {[%clk 0:01:51.1]} 21... Ba6 {[%clk 0:01:36.8]} 22. Bxa6
{[%clk 0:01:40.6]} 22... Rxa6 {[%clk 0:01:37.7]} 23. Ned4 {[%clk 0:01:37.1]}
23... Nxd4 {[%clk 0:01:20.2]} 24. Nxd4 {[%clk 0:01:38]} 24... Rc8 {[%clk
0:01:18.1]} 25. f5 {[%clk 0:01:33.8]} 25... exf5 {[%clk 0:01:18.2]} 26. Nxf5
{[%clk 0:01:27.5]} 26... Qxe5 {[%clk 0:01:13]} 27. Rde1 {[%clk 0:01:23.8]} 27...
Qxc3 {[%clk 0:01:00.3]} 28. Ne7+ {[%clk 0:01:18.6]} 28... Kh8 {[%clk 0:01:00.6]}
29. Nxc8 {[%clk 0:01:18.2]} 29... Rf6 {[%clk 0:01:00.1]} 30. Re8 {[%clk
0:01:01.3]} 1-0

[Event "*** SCC Grand Prix: Titled Tuesday Blitz"]
[Site "Chess.com"]
[Date "2020.06.23"]
[Round "2"]
[White "MarcoRiehle"]
[Black "ARTHURMOTIVATOR"]
[Result "1-0"]
[WhiteElo "2705"]
[BlackElo "2344"]
[TimeControl "180+1"]
[EndTime "10:16:59 PDT"]
[Termination "MarcoRiehle won by resignation"]

1. e4 {[%clk 0:03:00.9]} 1... c6 {[%clk 0:02:59.4]} 2. c4 {[%clk 0:03:00.4]}
2... d5 {[%clk 0:02:53.2]} 3. cxd5 {[%clk 0:03:01.3]} 3... cxd5 {[%clk
0:02:53.4]} 4. exd5 {[%clk 0:03:02.1]} 4... Nf6 {[%clk 0:02:53.3]} 5. Nc3 {[%clk
0:03:02.4]} 5... g6 {[%clk 0:02:53]} 6. Bc4 {[%clk 0:03:02]} 6... Bg7 {[%clk
0:02:53.1]} 7. d3 {[%clk 0:03:02]} 7... O-O {[%clk 0:02:52.9]} 8. Nf3 {[%clk
0:03:02.6]} 8... Na6 {[%clk 0:02:49.3]} 9. O-O {[%clk 0:03:02.5]} 9... Nc7
{[%clk 0:02:46.2]} 10. Qb3 {[%clk 0:03:02.2]} 10... Nfe8 {[%clk 0:02:44.9]} 11.
Bf4 {[%clk 0:02:57.6]} 11... Nd6 {[%clk 0:02:44.3]} 12. a4 {[%clk 0:02:53.3]}
12... h6 {[%clk 0:02:36]} 13. Rfe1 {[%clk 0:02:52.9]} 13... Rb8 {[%clk
0:02:27.2]} 14. Be5 {[%clk 0:02:47.3]} 14... f6 {[%clk 0:02:14.5]} 15. Bxd6
{[%clk 0:02:44.6]} 15... exd6 {[%clk 0:01:45.9]} 16. Nd4 {[%clk 0:02:44.1]}
16... f5 {[%clk 0:01:36.2]} 17. Nc6 {[%clk 0:02:39.3]} 17... bxc6 {[%clk
0:01:29.5]} 18. Qxb8 {[%clk 0:02:40.2]} 18... Bxc3 {[%clk 0:01:20.7]} 19. bxc3
{[%clk 0:02:32.7]} 19... cxd5 {[%clk 0:01:20.4]} 20. Ba2 {[%clk 0:02:31.5]}
20... Qd7 {[%clk 0:01:03.5]} 21. Qxa7 {[%clk 0:02:27.3]} 21... Ba6 {[%clk
0:00:37.8]} 22. Bxd5+ {[%clk 0:02:25.5]} 22... Kh7 {[%clk 0:00:36.2]} 23. Bc6
{[%clk 0:02:17.7]} 23... Qg7 {[%clk 0:00:27.5]} 24. Bb5 {[%clk 0:02:11.7]} 24...
Bxb5 {[%clk 0:00:24.4]} 25. axb5 {[%clk 0:02:11.1]} 25... Nxb5 {[%clk
0:00:24.3]} 26. Qxg7+ {[%clk 0:02:09.6]} 26... Kxg7 {[%clk 0:00:25.2]} 27. c4
{[%clk 0:02:09.1]} 27... Nd4 {[%clk 0:00:21.5]} 28. h3 {[%clk 0:02:08.9]} 28...
Kf6 {[%clk 0:00:20.6]} 29. Ra6 {[%clk 0:02:06.8]} 29... Rd8 {[%clk 0:00:20.2]}
30. c5 {[%clk 0:02:06.3]} 30... Nb5 {[%clk 0:00:12.1]} 31. Rb1 {[%clk
0:02:03.3]} 31... Nc3 {[%clk 0:00:11.4]} 32. Rbb6 {[%clk 0:02:01.7]} 32... Ke5
{[%clk 0:00:09.1]} 33. d4+ {[%clk 0:02:00.7]} 33... Ke4 {[%clk 0:00:05.5]} 34.
Rxd6 {[%clk 0:02:00.7]} 34... Rb8 {[%clk 0:00:04.2]} 35. Rdb6 {[%clk 0:01:59]}
35... Rd8 {[%clk 0:00:02.6]} 36. c6 {[%clk 0:01:56.8]} 36... Rxd4 {[%clk
0:00:01.7]} 37. c7 {[%clk 0:01:56.3]} 37... Rd1+ {[%clk 0:00:01.4]} 38. Kh2
{[%clk 0:01:56.6]} 1-0

[Event "*** SCC Grand Prix: Titled Tuesday Blitz"]
[Site "Chess.com"]
[Date "2020.06.23"]
[Round "2"]
[White "SiddharthGMJagadeesh"]
[Black "Mbneu"]
[Result "1-0"]
[WhiteElo "2440"]
[BlackElo "2201"]
[TimeControl "180+1"]
[EndTime "10:16:59 PDT"]
[Termination "SiddharthGMJagadeesh won by resignation"]

1. e4 {[%clk 0:03:00.9]} 1... c5 {[%clk 0:01:48.7]} 2. Nf3 {[%clk 0:02:59.5]}
2... Nf6 {[%clk 0:01:48.4]} 3. Nc3 {[%clk 0:02:58.1]} 3... d5 {[%clk 0:01:48.1]}
4. Bb5+ {[%clk 0:02:54]} 4... Bd7 {[%clk 0:01:47.5]} 5. Bxd7+ {[%clk 0:02:52.4]}
5... Qxd7 {[%clk 0:01:48.2]} 6. exd5 {[%clk 0:02:46.6]} 6... Nxd5 {[%clk
0:01:47.3]} 7. O-O {[%clk 0:02:46.8]} 7... Nc6 {[%clk 0:01:46.2]} 8. d3 {[%clk
0:02:36.1]} 8... e6 {[%clk 0:01:44.8]} 9. Re1 {[%clk 0:02:35.1]} 9... Be7 {[%clk
0:01:45.2]} 10. Bg5 {[%clk 0:02:03.3]} 10... O-O {[%clk 0:01:41.4]} 11. Bxe7
{[%clk 0:01:57.3]} 11... Ndxe7 {[%clk 0:01:42.3]} 12. Ne4 {[%clk 0:01:54.5]}
12... b6 {[%clk 0:01:41.7]} 13. Nfg5 {[%clk 0:01:36.3]} 13... h6 {[%clk
0:01:35.2]} 14. Qh5 {[%clk 0:01:07.7]} 14... Qd5 {[%clk 0:01:13.7]} 15. Re3
{[%clk 0:01:06]} 15... f5 {[%clk 0:00:56.8]} 16. Nc3 {[%clk 0:01:00.2]} 16...
Qd7 {[%clk 0:00:39.7]} 17. Nxe6 {[%clk 0:00:59.9]} 17... Rf6 {[%clk 0:00:38]}
18. Rae1 {[%clk 0:00:58.1]} 18... Nd5 {[%clk 0:00:17.9]} 19. Nxd5 {[%clk
0:00:54.2]} 1-0